fUSD/lending_fUSD_20241223
["ID","MTS","AMOUNT","RATE_DAILY","PERIOD"]
[346425139,1734955867912,-500.0,0.00019726,2]
[346425140,1734955867922,-500.0,0.00019726,2]
[346425141,1734955867932,-500.0,0.00019726,2]
[346425142,1734955867941,-1518.09,0.00019726,2]
[346425143,1734955867950,-500.0,0.00019726,2]
[346425144,1734955867960,-500.0,0.00019726,2]
[346425145,1734955867969,-500.0,0.00019726,2]
[346425146,1734955867979,-586.08,0.00019726,2]
[346425147,1734955867988,-1490.32,0.00019726,2]
[346425148,1734955867998,-500.0,0.00019726,2]
[346425149,1734955868008,-500.0,0.00019726,2]
[346425150,1734955868017,-736.93,0.00019726,2]
[346425151,1734955868026,-500.0,0.00019726,2]
[346425152,1734955868035,-500.0,0.00019726,2]
[346425153,1734955868045,-2447.53,0.00019726,2]
[346425154,1734955868054,-669.07,0.00019726,2]
[346425155,1734955868063,-500.0,0.00019726,2]
[346425156,1734955868072,-771.74,0.00019726,2]
[346425157,1734955868081,-820.71,0.00019726,2]
[346425158,1734955868091,-500.0,0.00019726,2]
[346425159,1734955868100,-500.0,0.00019726,2]
[346425160,1734955868109,-500.0,0.00019726,2]
[346425161,1734955868118,-690.07,0.00019726,2]
[346425162,1734955868127,-500.0,0.00019726,2]
[346425163,1734955868137,-1090.76,0.00019726,2]
[346425164,1734955868146,-625.61,0.00019726,2]
[346425165,1734955868156,-727.63,0.00019726,2]
[346425166,1734955868165,-577.70073631,0.00019726,2]
[346425167,1734955868175,-500.0,0.00019726,2]
[346425168,1734955868184,-1617.09,0.00019726,2]
[346425169,1734955868193,-500.0,0.00019726,2]
[346425170,1734955868203,-727.91,0.00019726,2]
[346425171,1734955868214,-624.83,0.00019726,2]
[346425172,1734955868223,-500.0,0.00019726,2]
[346425173,1734955868233,-522.30053318,0.00019726,2]
[346425174,1734955868242,-500.0,0.00019726,2]
[346425175,1734955868252,-500.0,0.00019726,2]
[346425176,1734955868261,-500.0,0.00019726,2]
[346425177,1734955868270,-700.0,0.00019726,2]
[346425178,1734955868280,-500.0,0.00019726,2]
[346425179,1734955868290,-1396.38,0.00019726,2]
[346425180,1734955868299,-500.0,0.00019726,2]
[346425181,1734955868309,-1814.16,0.00019726,2]
[346425182,1734955868318,-1247.18,0.00019726,2]
[346425183,1734955868327,-1231.72,0.00019726,2]
[346425184,1734955868336,-500.0,0.00019726,2]
[346425185,1734955868346,-500.0,0.00019726,2]
[346425186,1734955868355,-500.0,0.00019726,2]
[346425187,1734955868364,-1146.97,0.00019726,2]
[346425188,1734955868374,-570.97,0.00019726,2]
[346425189,1734955868383,-2371.46,0.00019726,2]
[346425190,1734955868392,-1446.21,0.00019726,2]
[346425191,1734955868402,-500.0,0.00019726,2]
[346425192,1734955868411,-952.21,0.00019726,2]
[346425193,1734955868421,-500.0,0.00019726,2]
[346425194,1734955868430,-604.23,0.00019726,2]
[346425195,1734955868439,-2149.33,0.00019726,2]
[346425196,1734955868449,-2479.48,0.00019726,2]
[346425197,1734955868459,-500.0,0.00019726,2]
[346425198,1734955868468,-865.55,0.00019726,2]
[346425199,1734955868477,-542.3,0.00019726,2]
[346425200,1734955868486,-500.0,0.00019726,2]
[346425201,1734955868495,-996.31,0.00019726,2]
[346425202,1734955868505,-649.17140198,0.00019726,2]
[346425203,1734955868516,-784.77,0.00019726,2]
[346425204,1734955868526,-815.75,0.00019726,2]
[346425205,1734955868536,-1657.47,0.00019726,2]
[346425206,1734955868545,-500.0,0.00019726,2]
[346425207,1734955868555,-2096.82,0.00019726,2]
[346425208,1734955868565,-500.0,0.00019726,2]
[346425209,1734955868575,-500.0,0.00019726,2]
[346425210,1734955868584,-560.64,0.00019726,2]
[346425211,1734955868594,-500.0,0.00019726,2]
[346425212,1734955868604,-1307.02,0.00019726,2]
[346425213,1734955868613,-500.0,0.00019726,2]
[346425214,1734955868622,-500.0,0.00019726,2]
[346425215,1734955868632,-1161.32,0.00019726,2]
[346425216,1734955868641,-515.96270277,0.00019726,2]
[346425217,1734955868650,-500.0,0.00019726,2]
[346425218,1734955868659,-621.42,0.00019726,2]
[346425219,1734955868668,-1808.41,0.00019726,2]
[346425220,1734955868678,-500.0,0.00019726,2]
[346425221,1734955868687,-1151.73,0.00019726,2]
[346425222,1734955868696,-500.0,0.00019726,2]
[346425223,1734955868705,-1182.98,0.00019726,2]
[346425224,1734955868716,-500.0,0.00019726,2]
[346425225,1734955868725,-200.0,0.00019726,2]
[346425226,1734955868734,-500.0,0.00019726,2]
[346425227,1734955868743,-500.0,0.00019726,2]
[346425228,1734955868752,-500.0,0.00019726,2]
[346425229,1734955868763,-500.0,0.00019726,2]
[346425230,1734955868772,-500.0,0.00019726,2]
[346425231,1734955868781,-2510.42,0.00019726,2]
[346425232,1734955868791,-807.05,0.00019726,2]
[346425233,1734955868801,-1411.22,0.00019726,2]
[346425234,1734955868810,-2689.51,0.00019726,2]
[346425235,1734955868819,-500.0,0.00019726,2]
[346425236,1734955868829,-500.0,0.00019726,2]
[346425237,1734955868838,-500.0,0.00019726,2]
[346425238,1734955868848,-500.0,0.00019726,2]
[346425239,1734955868858,-703.24,0.00019726,2]
[346425240,1734955868867,-500.0,0.00019726,2]
[346425241,1734955868876,-530.76,0.00019726,2]
[346425242,1734955868885,-598.2,0.00019726,2]
[346425243,1734955868895,-851.08,0.00019726,2]
[346425244,1734955868904,-571.49,0.00019726,2]
[346425245,1734955868913,-799.52,0.00019726,2]
[346425246,1734955868923,-502.3,0.00019726,2]
[346425247,1734955868932,-500.0,0.00019726,2]
[346425248,1734955868941,-500.0,0.00019726,2]
[346425249,1734955868951,-500.0,0.00019726,2]
[346425250,1734955868965,-500.0,0.00019726,2]
[346425251,1734955868974,-150.20309557,0.00019726,2]
[346425252,1734955868984,-500.0,0.00019726,2]
[346425253,1734955868993,-1268.19,0.00019726,2]
[346425254,1734955869003,-3011.62,0.00019726,2]
[346425255,1734955869013,-500.0,0.00019726,2]
[346425256,1734955869023,-1663.74,0.00019726,2]
[346425257,1734955869032,-500.0,0.00019726,2]
[346425258,1734955869042,-1081.65,0.00019726,2]
[346425259,1734955869051,-500.0,0.00019726,2]
[346425260,1734955869060,-500.0,0.00019726,2]
[346425261,1734955869070,-500.0,0.00019726,2]
[346425262,1734955869080,-500.0,0.00019726,2]
[346425263,1734955869090,-500.0,0.00019726,2]
[346425264,1734955869100,-1112.82,0.00019726,2]
[346425265,1734955869110,-500.0,0.00019726,2]
[346425266,1734955869119,-2596.17,0.00019726,2]
[346425267,1734955869128,-2081.55,0.00019726,2]
[346425268,1734955869138,-500.0,0.00019726,2]
[346425269,1734955869147,-2012.3,0.00019726,2]
[346425270,1734955869156,-500.0,0.00019726,2]
[346425271,1734955869169,-500.0,0.00019726,2]
[346425272,1734955869179,-864.06,0.00019726,2]
[346425273,1734955869188,-500.0,0.00019726,2]
[346425274,1734955869198,-500.0,0.00019726,2]
[346425275,1734955869209,-500.0,0.00019726,2]
[346425276,1734955869219,-781.26,0.00019726,2]
[346425277,1734955869228,-1515.98,0.00019726,2]
[346425278,1734955869238,-2281.74,0.00019726,2]
[346425279,1734955869247,-500.0,0.00019726,2]
[346425280,1734955869257,-742.41,0.00019726,2]
[346425281,1734955869266,-2773.3,0.00019726,2]
[346425282,1734955869276,-500.0,0.00019726,2]
[346425283,1734955869285,-1626.14,0.00019726,2]
[346425284,1734955869295,-419.14152146,0.00019726,2]
[346425285,1734955869305,-1200.23,0.00019726,2]
[346425286,1734955869314,-857.21,0.00019726,2]
[346425287,1734955869324,-856.61,0.00019726,2]
[346425288,1734955869334,-1090.08,0.00019726,2]
[346425289,1734955869343,-500.0,0.00019726,2]
[346425290,1734955869353,-1507.47,0.00019726,2]
[346425291,1734955869363,-510.32,0.00019726,2]
[346425292,1734955869373,-2939.61,0.00019726,2]
[346425293,1734955869383,-500.0,0.00019726,2]
[346425294,1734955869393,-1125.22,0.00019726,2]
[346425295,1734955869403,-155.94732915,0.00019726,2]
[346425296,1734955869413,-500.0,0.00019726,2]
[346425297,1734955869423,-500.0,0.00019726,2]
[346425298,1734955869432,-500.0,0.00019726,2]
[346425299,1734955869442,-1592.12,0.00019726,2]
[346425300,1734955869451,-500.0,0.00019726,2]
[346425301,1734955869463,-500.0,0.00019726,2]
[346425302,1734955869473,-885.95,0.00019726,2]
[346425303,1734955869483,-500.0,0.00019726,2]
[346425304,1734955869493,-500.0,0.00019726,2]
[346425305,1734955869503,-637.69,0.00019726,2]
[346425306,1734955869514,-2904.74,0.00019726,2]
[346425307,1734955869525,-3046.47,0.00019726,2]
[346425308,1734955869535,-872.67,0.00019726,2]
[346425309,1734955869544,-2276.97,0.00019726,2]
[346425310,1734955869555,-500.0,0.00019726,2]
[346425311,1734955869564,-944.77,0.00019726,2]
[346425312,1734955869574,-509.31,0.00019726,2]
[346425313,1734955869583,-820.18,0.00019726,2]
[346425314,1734955869593,-1501.61,0.00019726,2]
[346425315,1734955869604,-846.6,0.00019726,2]
[346425316,1734955869614,-583.88,0.00019726,2]
[346425317,1734955869624,-367.52554089,0.00019726,2]
[346425318,1734955869633,-500.0,0.00019726,2]
[346425319,1734955869643,-897.94,0.00019726,2]
[346425320,1734955869652,-500.0,0.00019726,2]
[346425321,1734955869662,-984.23,0.00019726,2]
[346425322,1734955869671,-500.0,0.00019726,2]
[346425323,1734955869682,-500.0,0.00019726,2]
[346425324,1734955869691,-1806.56,0.00019726,2]
[346425325,1734955869701,-500.0,0.00019726,2]
[346425326,1734955869711,-500.0,0.00019726,2]
[346425327,1734955869720,-1467.63,0.00019726,2]
[346425328,1734955869730,-1342.54,0.00019726,2]
[346425329,1734955869740,-5760.36,0.00019726,2]
[346425330,1734955869749,-865.33,0.00019726,2]
[346425331,1734955869759,-556.13,0.00019726,2]
[346425332,1734955869768,-500.0,0.00019726,2]
[346425333,1734955869777,-879.51,0.00019726,2]
[346425334,1734955869787,-500.0,0.00019726,2]
[346425335,1734955869796,-500.0,0.00019726,2]
[346425336,1734955869807,-500.0,0.00019726,2]
[346425337,1734955869816,-1208.45,0.00019726,2]
[346425338,1734955869825,-500.0,0.00019726,2]
[346425339,1734955869835,-500.0,0.00019726,2]
[346425340,1734955869844,-7912.4,0.00019726,2]
[346425341,1734955869854,-675.13,0.00019726,2]
[346425342,1734955869863,-1298.75,0.00019726,2]
[346425343,1734955869872,-500.0,0.00019726,2]
[346425344,1734955869882,-1659.8,0.00019726,2]
[346425345,1734955869891,-793.12,0.00019726,2]
[346425346,1734955869900,-500.0,0.00019726,2]
[346425347,1734955869910,-500.0,0.00019726,2]
[346425348,1734955869920,-630.37996138,0.00019726,2]
[346425349,1734955869929,-778.68,0.00019726,2]
[346425350,1734955869939,-672.27,0.00019726,2]
[346425351,1734955869948,-500.0,0.00019726,2]
[346425352,1734955869958,-500.0,0.00019726,2]
[346425353,1734955869970,-1333.5,0.00019726,2]
[346425354,1734955869981,-3205.93,0.00019726,2]
[346425355,1734955869990,-5090.5,0.00019726,2]
[346425356,1734955870000,-2305.98,0.00019726,2]
[346425357,1734955870010,-500.0,0.00019726,2]
[346425358,1734955870019,-500.0,0.00019726,2]
[346425359,1734955870029,-500.0,0.00019726,2]
[346425360,1734955870039,-4021.31,0.00019726,2]
[346425361,1734955870048,-163.4582559,0.00019726,2]
[346425362,1734955870147,-795.41,0.00019726,2]
[346425363,1734955870157,-500.0,0.00019726,2]
[346425364,1734955870166,-500.0,0.00019726,2]
[346425365,1734955870175,-6186.31,0.00019726,2]
[346425366,1734955870185,-500.0,0.00019726,2]
[346425367,1734955870194,-662.06,0.00019726,2]
[346425368,1734955870203,-2826.81,0.00019726,2]
[346425369,1734955870213,-964.39,0.00019726,2]
[346425370,1734955870222,-500.0,0.00019726,2]
[346425371,1734955870231,-1278.39,0.00019726,2]
[346425372,1734955870241,-150.0,0.00019726,2]
[346425373,1734955870250,-500.0,0.00019726,2]
[346425374,1734955870259,-610.42,0.00019726,2]
[346425375,1734955870268,-500.0,0.00019726,2]
[346425376,1734955870278,-2023.94,0.00019726,2]
[346425377,1734955870287,-12605.03,0.00019726,2]
[346425378,1734955870297,-500.0,0.00019726,2]
[346425379,1734955870306,-5855.86,0.00019726,2]
[346425380,1734955870315,-1288.47,0.00019726,2]
[346425381,1734955870325,-500.0,0.00019726,2]
[346425382,1734955870334,-633.33,0.00019726,2]
[346425383,1734955870343,-500.0,0.00019726,2]
[346425384,1734955870352,-693.11,0.00019726,2]
[346425385,1734955870361,-1614.83,0.00019726,2]
[346425386,1734955870371,-4625.92,0.00019726,2]
[346425387,1734955870381,-1519.15428303,0.00019726,2]
[346425388,1734955870390,-500.0,0.00019726,2]
[346425389,1734955870399,-500.0,0.00019726,2]
[346425390,1734955870408,-500.0,0.00019726,2]
[346425391,1734955870418,-1286.32,0.00019726,2]
[346425392,1734955870427,-1290.76,0.00019726,2]
[346425393,1734955870436,-500.0,0.00019726,2]
[346425394,1734955870445,-983.95,0.00019726,2]
[346425395,1734955870455,-500.0,0.00019726,2]
[346425396,1734955870469,-500.0,0.00019726,2]
[346425397,1734955870478,-22721.64,0.00019726,2]
[346425398,1734955870487,-543.01,0.00019726,2]
[346425399,1734955870497,-504.7520463,0.00019726,2]
[346425400,1734955870507,-593.53,0.00019726,2]
[346425401,1734955870520,-32886.26,0.00019726,2]
[346425402,1734955870530,-500.0,0.00019726,2]
[346425403,1734955870540,-500.0,0.00019726,2]
[346425404,1734955870550,-1219.38,0.00019726,2]
[346425405,1734955870560,-500.0,0.00019726,2]
[346425406,1734955870570,-2274.61,0.00019726,2]
[346425407,1734955870580,-500.0,0.00019726,2]
[346425408,1734955870591,-500.0,0.00019726,2]
[346425409,1734955870601,-3581.29,0.00019726,2]
[346425410,1734955870611,-519.46,0.00019726,2]
[346425411,1734955870622,-671.23,0.00019726,2]
[346425412,1734955870632,-500.0,0.00019726,2]
[346425413,1734955870642,-4909.54,0.00019726,2]
[346425414,1734955870651,-1334.46,0.00019726,2]
[346425415,1734955870660,-500.0,0.00019726,2]
[346425416,1734955870671,-1561.25,0.00019726,2]
[346425417,1734955870681,-649.76,0.00019726,2]
[346425418,1734955870691,-2391.68,0.00019726,2]
[346425419,1734955870701,-9245.7,0.00019726,2]
[346425420,1734955870713,-805.99,0.00019726,2]
[346425421,1734955870726,-872.37,0.00019726,2]
[346425422,1734955870740,-500.0,0.00019726,2]
[346425423,1734955870750,-506.68652232,0.00019726,2]
[346425424,1734955870760,-500.0,0.00019726,2]
[346425425,1734955870769,-500.0,0.00019726,2]
[346425426,1734955870779,-3246.31,0.00019726,2]
[346425427,1734955870788,-388.80373237,0.00019726,2]
[346425428,1734955870798,-1709.41,0.00019726,2]
[346425429,1734955870807,-903.9,0.00019726,2]
[346425430,1734955870817,-500.0,0.00019726,2]
[346425431,1734955870827,-500.0,0.00019726,2]
[346425432,1734955870836,-1023.29,0.00019726,2]
[346425433,1734955870845,-500.0,0.00019726,2]
[346425434,1734955870854,-1589.84,0.00019726,2]
[346425435,1734955870863,-1763.51,0.00019726,2]
[346425436,1734955870872,-500.0,0.00019726,2]
[346425437,1734955870882,-500.0,0.00019726,2]
[346425438,1734955870891,-500.0,0.00019726,2]
[346425439,1734955870900,-890.13,0.00019726,2]
[346425440,1734955870909,-500.0,0.00019726,2]
[346425441,1734955870919,-500.0,0.00019726,2]
[346425442,1734955870929,-3321.39,0.00019726,2]
[346425443,1734955870939,-1048.76,0.00019726,2]
[346425444,1734955870948,-548.25,0.00019726,2]
[346425445,1734955870957,-1299.33,0.00019726,2]
[346425446,1734955870974,-301.75472634,0.00019726,2]
[346425447,1734955870983,-500.0,0.00019726,2]
[346425448,1734955870992,-500.0,0.00019726,2]
[346425449,1734955871001,-2625.75,0.00019726,2]
[346425450,1734955871011,-355.01812532,0.00019726,2]
[346425451,1734955871020,-1342.29,0.00019726,2]
[346425452,1734955871029,-500.0,0.00019726,2]
[346425453,1734955871038,-1484.19,0.00019726,2]
[346425454,1734955871048,-500.0,0.00019726,2]
[346425455,1734955871057,-3129.04,0.00019726,2]
[346425456,1734955871066,-500.0,0.00019726,2]
[346425457,1734955871075,-357.22950138,0.00019726,2]
[346425458,1734955871083,-500.0,0.00019726,2]
[346425459,1734955871092,-500.0,0.00019726,2]
[346425460,1734955871102,-2780.96,0.00019726,2]
[346425461,1734955871111,-805.18,0.00019726,2]
[346425462,1734955871119,-2242.01,0.00019726,2]
[346425463,1734955871128,-1982.02,0.00019726,2]
[346425464,1734955871137,-500.0,0.00019726,2]
[346425465,1734955871147,-500.0,0.00019726,2]
[346425466,1734955871156,-1217.17,0.00019726,2]
[346425467,1734955871165,-500.0,0.00019726,2]
[346425468,1734955871174,-2761.31,0.00019726,2]
[346425469,1734955871183,-500.0,0.00019726,2]
[346425470,1734955871192,-500.0,0.00019726,2]
[346425471,1734955871200,-500.0,0.00019726,2]
[346425472,1734955871209,-500.0,0.00019726,2]
[346425473,1734955871221,-1597.12,0.00019726,2]
[346425474,1734955871230,-500.0,0.00019726,2]
[346425475,1734955871239,-7693.94,0.00019726,2]
[346425476,1734955871248,-1296.53,0.00019726,2]
[346425477,1734955871257,-836.61,0.00019726,2]
[346425478,1734955871267,-500.0,0.00019726,2]
[346425479,1734955871276,-500.0,0.00019726,2]
[346425480,1734955871285,-1102.64,0.00019726,2]
[346425481,1734955871294,-3578.81,0.00019726,2]
[346425482,1734955871303,-500.0,0.00019726,2]
[346425483,1734955871313,-1029.95,0.00019726,2]
[346425484,1734955871322,-1786.23,0.00019726,2]
[346425485,1734955871331,-513.50651016,0.00019726,2]
[346425486,1734955871340,-500.0,0.00019726,2]
[346425487,1734955871348,-5311.84,0.00019726,2]
[346425488,1734955871358,-500.0,0.00019726,2]
[346425489,1734955871367,-500.0,0.00019726,2]
[346425490,1734955871375,-4978.95,0.00019726,2]
[346425491,1734955871385,-500.0,0.00019726,2]
[346425492,1734955871394,-500.0,0.00019726,2]
[346425493,1734955871403,-500.0,0.00019726,2]
[346425494,1734955871412,-5092.12,0.00019726,2]
[346425495,1734955871421,-500.0,0.00019726,2]
[346425496,1734955871430,-500.0,0.00019726,2]
[346425497,1734955871439,-1545.28,0.00019726,2]
[346425498,1734955871448,-683.65,0.00019726,2]
[346425499,1734955871457,-1847.42,0.00019726,2]
[346425500,1734955871469,-500.0,0.00019726,2]
[346425501,1734955871478,-500.0,0.00019726,2]
[346425502,1734955871487,-500.0,0.00019726,2]
[346425503,1734955871496,-2411.4,0.00019726,2]
[346425504,1734955871505,-5090.85,0.00019726,2]
[346425505,1734955871515,-500.0,0.00019726,2]
[346425506,1734955871525,-500.0,0.00019726,2]
[346425507,1734955871534,-150.0,0.00019726,2]
[346425508,1734955871543,-635.92,0.00019726,2]
[346425509,1734955871553,-4565.91,0.00019726,2]
[346425510,1734955871561,-500.0,0.00019726,2]
[346425511,1734955871570,-500.0,0.00019726,2]
[346425512,1734955871579,-2397.77,0.00019726,2]
[346425513,1734955871589,-150.43808002,0.00019726,2]
[346425514,1734955871599,-513.1,0.00019726,2]
[346425515,1734955871608,-259.76984203,0.00019726,2]
[346425516,1734955871617,-669.12,0.00019726,2]
[346425517,1734955871626,-150.0,0.00019726,2]
[346425518,1734955871635,-4732.78,0.00019726,2]
[346425519,1734955871643,-731.44,0.00019726,2]
[346425520,1734955871653,-7938.27,0.00019726,2]
[346425521,1734955871662,-500.0,0.00019726,2]
[346425522,1734955871671,-500.0,0.00019726,2]
[346425523,1734955871680,-3200.48,0.00019726,2]
[346425524,1734955871689,-500.0,0.00019726,2]
[346425525,1734955871698,-5544.86,0.00019726,2]
[346425526,1734955871708,-627.22,0.00019726,2]
[346425527,1734955871720,-500.0,0.00019726,2]
[346425528,1734955871729,-695.3,0.00019726,2]
[346425529,1734955871738,-1446.16,0.00019726,2]
[346425530,1734955871747,-2198.9,0.00019726,2]
[346425531,1734955871755,-1350.77,0.00019726,2]
[346425532,1734955871765,-538.14,0.00019726,2]
[346425533,1734955871774,-23361.55,0.00019726,2]
[346425534,1734955871783,-500.0,0.00019726,2]
[346425535,1734955871792,-1142.61,0.00019726,2]
[346425536,1734955871801,-500.0,0.00019726,2]
[346425537,1734955871810,-526.95,0.00019726,2]
[346425538,1734955871819,-3151.0,0.00019726,2]
[346425539,1734955871829,-150.0,0.00019726,2]
[346425540,1734955871838,-1385.0,0.00019726,2]
[346425541,1734955871847,-500.0,0.00019726,2]
[346425542,1734955871856,-500.0,0.00019726,2]
[346425543,1734955871865,-3231.0,0.00019726,2]
[346425544,1734955871874,-3390.28,0.00019726,2]
[346425545,1734955871883,-500.0,0.00019726,2]
[346425546,1734955871893,-2533.66,0.00019726,2]
[346425547,1734955871902,-500.0,0.00019726,2]
[346425548,1734955871911,-1268.96,0.00019726,2]
[346425549,1734955871920,-500.0,0.00019726,2]
[346425550,1734955871929,-613.73,0.00019726,2]
[346425551,1734955871939,-500.0,0.00019726,2]
[346425552,1734955871947,-785.97,0.00019726,2]
[346425553,1734955871956,-1746.0,0.00019726,2]
[346425554,1734955871966,-723.78,0.00019726,2]
[346425555,1734955871975,-500.0,0.00019726,2]
[346425556,1734955871984,-9339.95,0.00019726,2]
[346425557,1734955871994,-4474.36,0.00019726,2]
[346425558,1734955872003,-500.0,0.00019726,2]
[346425559,1734955872012,-762.52,0.00019726,2]
[346425560,1734955872022,-1172.82,0.00019726,2]
[346425561,1734955872031,-380.81675253,0.00019726,2]
[346425562,1734955872041,-2143.07,0.00019726,2]
[346425563,1734955872050,-500.0,0.00019726,2]
[346425564,1734955872059,-1668.94,0.00019726,2]
[346425565,1734955872068,-500.0,0.00019726,2]
[346425566,1734955872077,-500.0,0.00019726,2]
[346425567,1734955872087,-5426.78,0.00019726,2]
[346425568,1734955872095,-4340.71,0.00019726,2]
[346425569,1734955872104,-500.0,0.00019726,2]
[346425570,1734955872114,-2781.6,0.00019726,2]
[346425571,1734955872123,-1356.5,0.00019726,2]
[346425572,1734955872132,-500.0,0.00019726,2]
[346425573,1734955872141,-5357.49,0.00019726,2]
[346425574,1734955872150,-6823.57,0.00019726,2]
[346425575,1734955872159,-500.0,0.00019726,2]
[346425576,1734955872167,-500.0,0.00019726,2]
[346425577,1734955872177,-500.0,0.00019726,2]
[346425578,1734955872186,-670.31,0.00019726,2]
[346425579,1734955872195,-837.11,0.00019726,2]
[346425580,1734955872204,-500.0,0.00019726,2]
[346425581,1734955872213,-2058.97,0.00019726,2]
[346425582,1734955872222,-1671.84,0.00019726,2]
[346425583,1734955872231,-500.0,0.00019726,2]
[346425584,1734955872240,-500.0,0.00019726,2]
[346425585,1734955872249,-2717.23,0.00019726,2]
[346425586,1734955872258,-865.58,0.00019726,2]
[346425587,1734955872267,-5777.43,0.00019726,2]
[346425588,1734955872277,-1421.73,0.00019726,2]
[346425589,1734955872286,-1133.94,0.00019726,2]
[346425590,1734955872295,-623.69,0.00019726,2]
[346425591,1734955872304,-500.0,0.00019726,2]
[346425592,1734955872313,-768.46,0.00019726,2]
[346425593,1734955872322,-1072.08,0.00019726,2]
[346425594,1734955872331,-500.0,0.00019726,2]
[346425595,1734955872340,-505.93691129,0.00019726,2]
[346425596,1734955872349,-5262.75,0.00019726,2]
[346425597,1734955872358,-31946.1,0.00019726,2]
[346425598,1734955872368,-500.0,0.00019726,2]
[346425599,1734955872377,-1951.83,0.00019726,2]
[346425600,1734955872386,-6288.26,0.00019726,2]
[346425601,1734955872396,-500.0,0.00019726,2]
[346425602,1734955872405,-9582.43,0.00019726,2]
[346425603,1734955872415,-500.0,0.00019726,2]
[346425604,1734955872424,-13566.05,0.00019726,2]
[346425605,1734955872434,-500.0,0.00019726,2]
[346425606,1734955872443,-500.0,0.00019726,2]
[346425607,1734955872452,-4981.33,0.00019726,2]
[346425608,1734955872461,-500.0,0.00019726,2]
[346425609,1734955872473,-500.0,0.00019726,2]
[346425610,1734955872482,-500.0,0.00019726,2]
[346425611,1734955872491,-519.1895154,0.00019726,2]
[346425612,1734955872500,-521.61,0.00019726,2]
[346425613,1734955872510,-8842.08,0.00019726,2]
[346425614,1734955872523,-11131.67,0.00019726,2]
[346425615,1734955872533,-577.5,0.00019726,2]
[346425616,1734955872542,-687.94,0.00019726,2]
[346425617,1734955872551,-8792.82,0.00019726,2]
[346425618,1734955872560,-10835.7,0.00019726,2]
[346425619,1734955872569,-641.34,0.00019726,2]
[346425620,1734955872578,-500.0,0.00019726,2]
[346425621,1734955872587,-3464.78,0.00019726,2]
[346425622,1734955872595,-1921.62,0.00019726,2]
[346425623,1734955872604,-4348.38,0.00019726,2]
[346425624,1734955872613,-500.0,0.00019726,2]
[346425625,1734955872622,-500.0,0.00019726,2]
[346425626,1734955872631,-500.0,0.00019726,2]
[346425627,1734955872640,-5705.47,0.00019726,2]
[346425628,1734955872649,-59151.21,0.00019726,2]
[346425629,1734955872658,-1216.85,0.00019726,2]
[346425630,1734955872667,-500.0,0.00019726,2]
[346425631,1734955872676,-1190.79,0.00019726,2]
[346425632,1734955872685,-13622.56,0.00019726,2]
[346425633,1734955872695,-617.65,0.00019726,2]
[346425634,1734955872704,-500.0,0.00019726,2]
[346425635,1734955872715,-500.0,0.00019726,2]
[346425636,1734955872724,-500.0,0.00019726,2]
[346425637,1734955872734,-500.0,0.00019726,2]
[346425638,1734955872743,-500.0,0.00019726,2]